{"text_format":"1","workbook":"xlsx","n_sheets":17,"sheets":["FrontCover","Contents","The CoP","Commentary page","Definitions","Legal Definitions","Number of Searches","Search Reason","Overall search outcomes","Receipts","Search Different to Outcome","Items Found - Drugs","Items Found - Weapons","Items Found - Other","Searches by Ethnicity ","Searches By Age and Gender","S60 Auths"],"not_rendered":{"charts":0,"images":1,"macros":1,"external_links":0,"defined_names":18,"comments":0,"pivot_tables":0},"unopened":[],"bounds":{"document_bytes":16777216,"sheet_cells":100000,"rows_first":2000,"rows_last":500,"rows_between":2000,"halvings":0,"cell_chars":16384,"cell_head_chars":4096},"cells_cut":0,"cells_raw":0,"read":"whole","date_system":"1900"}

{"sheet":"FrontCover","index":0,"n_rows":36,"n_cols":1,"rows_kept":36,"cut":false,"hidden":false,"merged":[]}
[]
["PLEASE REPLACE THIS PAGE WITH THE STANDARD MI COVER"]
[]
[]
[]
[]
[]
[]
[]
[]
[]
[]
[]
[]
[]
["Management Information"]
[]
["National Stop and Search"]
["Database: Quarterly Report"]
[]
[]
["OFFICIAL"]
["THIS DATA IS POLICE SCOTLAND MANAGEMENT INFORMATION,"]
["NOT OFFICIAL STATISTICS"]
[]
["APRIL - SEPTEMBER 2024/25"]
[]
[]
[]
[]
[]
[]
[]
[]
["Produced by Police Scotland Analysis and Performance Unit"]
["2024-10-02"]

{"sheet":"Contents","index":1,"n_rows":51,"n_cols":6,"rows_kept":51,"cut":false,"hidden":false,"merged":[[50,3,50,5]]}
["Contents"]
[]
["The Code of Practice",2]
["Commentary Notes",3]
["Definition of a Stop and Search",4]
["Stop and Searches, Legislation ",5]
[]
["Stop and Searches"]
["Stop and Searches by Local Authority",6]
["Stop and Searches by Legislation",7]
["Search Outcomes",8]
["Stop and Search Receipts",9]
[]
["Items Found During a Search"]
["Main Item Found Classification by Search Reason",10]
["Drugs Found by Local Authority",11]
["Weapons Found by Local Authority",12]
["Other Items Found by Local Authority",13]
[]
["Demographic of Nominals Searched"]
["Searches by Ethnicity/National Origin",14]
["Searches by Age and Gender",15]
[]
["Public Order Search Powers"]
["Use of Powers under Section 60 Criminal Justice and Public Order Act 1994",16]
[]
[]
[]
[]
[]
[]
[]
[]
[]
[]
[]
[]
[]
[]
[]
[]
[]
[]
[]
[]
[]
[]
[]
[]
[null,null,null,null,null,"Produced by Police Scotland Analysis and Performance Unit"]
[null,null,null,{"$f":"TODAY()","v":"2024-12-17"}]

{"sheet":"The CoP","index":2,"n_rows":42,"n_cols":1,"rows_kept":42,"cut":false,"hidden":false,"merged":[]}
["The Code of Practice on the Exercise by Constables of Powers of Stop"]
["and Search of the Person in Scotland"]
[]
["The Code came into effect on 11 May 2017. The Code governs all situations in which constables stop and search "]
["a person without first making an arrest, unless the search is expressly excluded, either under the Code, by "]
["statute, or by virtue of the search being subject to a separate statutory Code or guidance as to its exercise. The "]
["Code also sets out the requirements to be followed by the Police for recording information in relation to all stop"]
["and search activity covered by the Code."]
[]
["The Code requires as soon as practicable after the end of each reporting year (ending 31 March), the Chief "]
["Constable of a relevant police service must publish, information on how many times during the reporting year a "]
["stop and search was carried out in Scotland by constables of that service. In addition, so far as practicable, the "]
["information is to disclose:"]
[]
["(a) the number of stops and searches carried out under each statutory power;"]
["(b) how many persons were searched on two or more occasions"]
["(c) the age and gender, and the ethnic and national origin, of the persons searched"]
["(d) the proportion of searches that resulted in:"]
["(i) something being recovered by a constable, including information as to the number of cases in which the item "]
["recovered was of the type suspected by the constable at the outset of the search"]
["(ii) a case being reported to the Procurator Fiscal"]
["(e) the number of authorisations issued under section 60 of the Criminal Justice and Public Order Act 1994"]
["(f) the number of complaints made to a relevant police service about the carrying out of searches "]
["(or the manner in which they were carried out) in Scotland by constables of that service."]
["(g) the number of receipts issued"]
[]
["The National Stop and Search Database was upgraded to coincide with the introduction of the Code. "]
["These changes included:"]
["(a) Cessation of the recording of consensual search"]
["(b) A new category to include searches of a person carried out in accordance with a search warrant issued by a court in Scotland"]
["(c) Addition of a new power under Section 66 of the Criminal Justice (Scotland) Act 2016, removal of a person"]
["(d) A new search type ‘Protection of Life’ recorded for when an officer conducts a search (in accordance with section 3.4 of "]
["the Code), under the overarching principles of Section 20 or 32 of the Police and Fire Reform (Scotland) Act 2012, as part of"]
["taking all steps necessary to protect life"]
["(e) A new search type ‘Other’ recorded for when an officer believes it is necessary to conduct a search that is not "]
["for the protection of life and where no specific statutory power exists and considers their actions to be justified, "]
["the officer should enter Police and Fire Reform (Scotland) Act as the ‘Power of Search used’"]
["(f) Officer’s estimate of the age group of the person searched (under the age of 18 or 18 years of age and over) if not provided"]
[]
["The Code is available at police stations and on the stop and search page of the Police Scotland website (www.scotland.police.uk)."]
["The Code is available at police stations and on the stop and search page of the Police Scotland website:"]
["Police Scotland Website"]

{"sheet":"Commentary page","index":3,"n_rows":41,"n_cols":1,"rows_kept":41,"cut":false,"hidden":false,"merged":[[30,0,30,12],[31,0,31,12]]}
["Commentary Notes on Management Information"]
[]
["Force Level Highlights"]
["1. All statistics are provisional and should be treated as management information. All data have been extracted "]
["from Police Scotland internal systems and are correct as of 9th October 2024."]
[]
["2. This report shows the data of the enhanced database 1st April 2024 – 30th September 2024."]
[]
["3. This data shows that Police Scotland is delivering the improvements set out in the Stop and Search "]
["Improvement Plan and is committed to sustaining and building on those improvements and maintaining "]
["community confidence."]
[]
["4. An enhanced database was rolled out across Scotland on 1st June 2015 which included additional validations "]
["designed to improve the quality of the data by preventing inaccurate data capture through input error. Further "]
["enhancements have followed, significantly allowing more detail to be recorded since the introduction of the Code "]
["of Practice. Following the review of the data captured on the National Stop and Search Database for the period "]
["specified, it is evident that the introduction of these validation checks has made a significant impact on the level "]
["of data input errors."]
[]
["5. In relation to outcomes the National Stop Search Unit (NSSU) do not validate or compare search outcomes "]
["from the National Stop Search Database with other Police systems."]
[]
["Ongoing Quality Assurance"]
["As part of Police Scotland's duty under data protection and our quality assurance process, records held on the "]
["database may be reviewed and may be subject to amendment. This involves liaising with the officer(s) involved "]
["to confirm any aspect of the recorded data which is unclear.  Any adjustment in respect of these records will be "]
["reflected in future stop and search publications.  "]
[]
[]
["Complaints"]
["For the period 1st April 2024 - 30th September 2024 a total of 45 complaints have been received by Police Scotland"]
["in relation to the use of stop and search."]
[]
["Persons Searched on Two or More Occasions"]
["Between 1st April 2024 - 30th September, 2092 persons have been searched on two or more occasions."]
["As the National Stop and Search Database is not nominal-centric this figure can be affected by a number of "]
["variables such as persons providing alias names or variations in spellings."]
[]
["Comparisons with Historical Data"]
["Due to changes in data recording to bring the National Stop and Search Database in line with the Code of Practice,"]
["direct comparisons with historical data would provide invalid or misleading conclusions."]

{"sheet":"Definitions","index":4,"n_rows":19,"n_cols":1,"rows_kept":19,"cut":false,"hidden":false,"merged":[]}
["Definition of a Stop and Search"]
[]
[]
[]
["Stop and Search"]
["A stop and search is one conducted by a police officer in the course of their duties where a person who is not in police"]
["custody is searched using a specific statutory provision or in accordance with a search warrant issued by a court in "]
["Scotland."]
[]
["Positive Stop and Search"]
["A positive stop and search is when an item is recovered where possession of same implies criminality on the part "]
["of the person being searched or any other or where an item has been recovered which is potentially harmful."]
[]
["N.B. When a stop and search under a statutory provision has taken place and alcohol, tobacco or NPS is recovered, "]
["depending on the circumstances this should be recorded as a positive stop and search on the Stop and Search Database."]
[]
["Recordable Stop and Search (must be recorded on the National Stop and Search Database)"]
["A recordable stop and search is any stop and search, with the exception of condition of entry searches (Section 67 Criminal "]
["Justice (Scotland) Act 2016) or Schedule 7 of the Terrorism Act 2000 (which is governed by different Codes of Practice)."]

{"sheet":"Legal Definitions","index":5,"n_rows":51,"n_cols":2,"rows_kept":51,"cut":false,"hidden":false,"merged":[]}
["Stop and Searches, Legislation"]
[]
[]
[]
["The following table identifies the type of searches recorded on the National Stop and Search Database, along with the specific legislation relative to each search type:\n"]
[]
["Search Type","Recordable Statute"]
[]
["Search Warrants ","S109(1) Copyright, Designs and Patents Act 1988 (Piracy and trademark offences etc)"]
["Search Warrants ","S142(1) Criminal Justice Act, 1988 (Search of premises for offensive weapons)"]
["Search Warrants ","S23(3) Misuse Of Drugs Act 1971"]
["Search Warrants ","S24(1) Forgery and Counterfeiting Act, 1981 (Search for counterfeit money)"]
["Search Warrants ","S27 Deer (Scotland) Act 1996"]
["Search Warrants ","S28B(4) Immigration Act 1971"]
["Search Warrants ","S292(3) Mental Health Care and Treatment Scotland Act 2003"]
["Search Warrants ","S42(1) Terrorism Act 2000"]
["Search Warrants ","S46(1) Firearms Act 1968"]
["Search Warrants ","Other Legislation"]
["Drugs ","S23(2) Misuse of Drugs Act 1971 (Controlled Drugs) "]
["Drugs ","S23A Misuse of Drugs Act 1971 (Temp Class Drugs) "]
["Care and Welfare ","S66 Criminal Justice (Scot) Act 2016"]
["NPS ","S36 Psychoactive Substances Act 2016 (Supply etc.) "]
["Stolen Property ","S60 Civic Government (Scot) Act 1982 "]
["Weapons ","S48(1) Criminal Law (Cons) (Scot) Act 1995 (Offensive weapons) "]
["Weapons ","S49(B) Criminal Law (Cons) (Scot) Act 1995 (Offensive weapons in Schools) "]
["Weapons ","S50 Criminal Law (Cons) (Scot) Act 1995 (Bladed or Pointed Articles) "]
["Weapons ","S11 Offensive Weapons Act 2019 (Corrosive Substances)"]
["Firearms ","S47(1) Firearms Act 1968 "]
["Firearms ","S4 Crossbows Act 1987 "]
["Fireworks ","S11A Fireworks Act 2003 "]
["Fireworks ","S41 Fireworks and Pyrotechnic Articles (Scotland) Act 2022"]
["Protection of Life","S20/32 Police & Fire Reform (Scot) Act 2012 "]
["Aviation","S24B Aviation Security Act 1982 (Stolen or prohibited items in Aerodromes)"]
["Aviation","Edinburgh Airport Byelaws 2015 (Search in interest of public safety)"]
["Aviation","Schedule 8(2) Air Traffic Management and Unmanned Aircraft Act 2021"]
["Wildlife","S19 Wildlife & Countryside Act 1981"]
["Wildlife","S11 Protection of Badgers Act 1992"]
["Wildlife","S101 Conservation (Natural Habitats etc.) Regulations 1994"]
["Wildlife","S27 Deer (Scot) Act 1996"]
["Wildlife","S4 Wild Mammals (Protection) Act 1996"]
["Wildlife","S7 Wild Mammals (Scot) Act 2002"]
["Wildlife","S53(1) Salmon & Freshwater Fisheries (Cons) (Scot) Act 2003"]
["Terrorism","S43 Terrorism Act 2000 (Suspect terrorist)"]
["Terrorism","S47A Terrorism Act 2000 (Authority of Assistant Chief Constable or above) "]
["Sporting Events","S21 Criminal Law (Cons) (Scot) Act 1995 (Controlled items) - Alcohol"]
["Sporting Events","S21 Criminal Law (Cons) (Scot) Act 1995 (Controlled items) - Controlled Containers"]
["Sporting Events","S21 Criminal Law (Cons) (Scot) Act 1995 (Controlled items) - Controlled Article or Substance"]
["Public Order","S60 Criminal Justice & Public Order Act 1994 (Authority of inspector or above)"]
["Proceeds of Crime","S289 Proceeds of Crime Act 2002 (Prior approval - cash)"]
["Proceeds of Crime","S303C Proceeds of Crime Act 2002 (Prior approval - listed assets)"]
["Other","S20/32 Police & Fire Reform (Scot) Act 2012 "]

{"sheet":"Number of Searches","index":6,"n_rows":45,"n_cols":12,"rows_kept":45,"cut":false,"hidden":false,"merged":[[47,0,47,4]]}
["Table 1.1"]
["Stop and Searches by Local Authority - Police Scotland"]
[{"$f":"CONCATENATE(\"Period: \",L7)","v":"Period: April to September 2024"}]
[]
[null,"Local Authority ","Number of Searches","Positive Searches","Positive Rate (%)"]
[]
["North",null,null,null,null,null,null,null,null,null,null,"April to September 2024"]
[null,"Highland",519,229,{"$f":"D8/C8*100","v":44.123314065510598}]
[null,"Orkney Islands",48,16,{"$f":"D9/C9*100","v":33.333333333333329}]
[null,"Shetland Islands",69,23,33.333333333333329]
[null,"Eilean Siar",32,14,43.75]
[null,"Aberdeen City",394,146,37.055837563451774]
[null,"Aberdeenshire",513,178,34.697855750487328]
[null,"Moray",129,39,30.232558139534881]
[null,"Perth and Kinross",78,35,44.871794871794876]
[null,"Dundee",192,89,46.354166666666671]
[null,"Angus",87,39,44.827586206896555]
[]
["East"]
[null,"Fife",194,80,41.237113402061851]
[null,"East Lothian",94,36,38.297872340425535]
[null,"Edinburgh City",746,249,33.378016085790883]
[null,"Midlothian",94,30,31.914893617021278]
[null,"Scottish Borders",80,29,36.25]
[null,"West Lothian",127,50,39.370078740157481]
[null,"Clackmannanshire",70,16,22.857142857142858]
[null,"Falkirk",245,75,30.612244897959183]
[null,"Stirling",158,46,29.11392405063291]
[]
["West"]
[null,"Argyll & Bute",425,124,29.176470588235293]
[null,"East Ayrshire",832,243,29.20673076923077]
[null,"East Dunbartonshire",161,43,26.70807453416149]
[null,"East Renfrewshire",227,65,28.634361233480178]
[null,"Glasgow City",4948,1058,21.382376717865803]
[null,"Inverclyde",499,97,19.438877755511022]
[null,"North Ayrshire",610,165,27.049180327868854]
[null,"North Lanarkshire",3307,627,18.959782280012096]
[null,"Renfrewshire",413,126,30.508474576271187]
[null,"South Ayrshire",765,142,18.562091503267975]
[null,"South Lanarkshire",2120,428,20.188679245283019]
[null,"West Dunbartonshire",439,133,30.296127562642365]
[null,"Dumfries and Galloway",383,113,29.503916449086159]
[]
["Force",null,{"$f":"SUM(C7:C44)","v":18998},{"$f":"SUM(D7:D44)","v":4783},25.176334350984312]

{"sheet":"Search Reason","index":7,"n_rows":89,"n_cols":4,"rows_kept":89,"cut":false,"hidden":false,"merged":[]}
["Table 1.2"]
["Stop and Search by Legislation - Police Scotland"]
[{"$f":"'Number of Searches'!$A$3","v":"Period: April to September 2024"}]
[]
["Legislation","Number of Searches","Positive Searches","Positive Rate (%)"]
[]
["Drugs",{"$f":"SUM(B8:B9)","v":13152},{"$f":"SUM(C8:C9)","v":3552},{"$f":"C7/B7*100","v":27.007299270072991}]
["S23(2) Misuse of Drugs Act 1971 (Controlled Drugs) ",13110,3546,{"$f":"C8/B8*100","v":27.048054919908466}]
["S23A Misuse of Drugs Act 1971 (Temp Class Drugs) ",42,6,{"$f":"IFERROR(C9/B9*100,\"-\")","v":14.285714285714285}]
[]
["NPS",{"$f":"B12","v":"-"},{"$f":"C12","v":"-"},{"$f":"IFERROR(C11/B11*100,\"-\")","v":"-"}]
["S36 Psychoactive Substances Act 2016 (Supply etc.) ","-","-",{"$f":"IFERROR(C12/B12*100,\"-\")","v":"-"}]
[]
["Weapons",{"$f":"SUM(B15:B18)","v":1673},{"$f":"SUM(C15:C18)","v":304},{"$f":"C14/B14*100","v":18.170950388523611}]
["S48(1) Criminal Law (Cons) (Scot) Act 1995 (Offensive weapons) ",655,109,16.641221374045799]
["S49(B) Criminal Law (Cons) (Scot) Act 1995 (Offensive weapons in Schools) ",23,5,21.739130434782609]
["S50 Criminal Law (Cons) (Scot) Act 1995 (Bladed or Pointed Articles) ",995,190,19.095477386934672]
["    S11 Offensive Weapons Act 2019 (Corrosive Substances)","-","-",{"$f":"IFERROR(C18/B18*100,\"-\")","v":"-"}]
["Stolen Property",{"$f":"B20","v":1007},{"$f":"C20","v":489},48.560079443892754]
["S60 Civic Government (Scot) Act 1982 ",1007,489,48.560079443892754]
[]
["Sporting Events",{"$f":"B23","v":7},{"$f":"C23","v":6},{"$f":"IFERROR(C22/B22*100,\"-\")","v":85.714285714285708}]
["S21 Criminal Law (Cons) (Scot) Act 1995 (Controlled items) ",7,6,{"$f":"IFERROR(C23/B23*100,\"-\")","v":85.714285714285708}]
[]
["Firearms",{"$f":"SUM(B26:B27)","v":38},{"$f":"SUM(C26:C27)","v":10},26.315789473684209]
["S47(1) Firearms Act 1968 ",37,9,24.324324324324326]
["S4 Crossbows Act 1987 ",1,1,{"$f":"IFERROR(C27/B27*100,\"-\")","v":100}]
[]
["Fireworks",{"$f":"SUM(B30:B31)","v":24},{"$f":"SUM(C30:C31)","v":6},{"$f":"IFERROR(C29/B29*100,\"-\")","v":25}]
["S11A Fireworks Act 2003 ",6,2,{"$f":"IFERROR(C30/B30*100,\"-\")","v":33.333333333333329}]
["    S41 Fireworks and Pyrotechnic Articles (Scotland) Act 2022",18,4,{"$f":"IFERROR(C31/B31*100,\"-\")","v":22.222222222222221}]
["Terrorism",{"$f":"B33","v":"-"},{"$f":"C33","v":"-"},"-"]
["S43 Terrorism Act 2000","-","-","-"]
[]
["Public Order",{"$f":"B36","v":"-"},{"$f":"C36","v":"-"},{"$f":"IFERROR(C35/B35*100,\"-\")","v":"-"}]
["S60 Criminal Justice & Public Order Act 1994 (Authority of inspector or above)","-","-",{"$f":"IFERROR(C36/B36*100,\"-\")","v":"-"}]
[null,null,null,{"$f":"IFERROR(C37/B37*100,\"-\")","v":"-"}]
["Wildlife",{"$f":"IF(SUM(B39:B45)=0,\"-\",SUM(B39:B45))","v":9},{"$f":"IF(SUM(C39:C45)=0,\"0\",SUM(C39:C45))","v":1},11.111111111111111]
["S19 Wildlife & Countryside Act 1981",1,0,0]
["S11 Protection of Badgers Act 1992","-","-","-"]
["S101 Conservation (Natural Habitats etc.) Regulations 1994","-","-","-"]
["S27 Deer (Scot) Act 1996","-","-","-"]
["S4 Wild Mammals (Protection) Act 1996","-","-","-"]
["S7 Wild Mammals (Scot) Act 2002","-","-","-"]
["S53(1) Salmon & Freshwater Fisheries (Cons) (Scot) Act 2003",8,1,12.5]
[null,null,null,"-"]
["Aviation",{"$f":"IF(SUM(B48:B50)=0,\"-\",SUM(B48:B50))","v":3},{"$f":"IF(B47=\"-\",\"-\",SUM(C48:C50))","v":0},0]
["S24B Aviation Security Act 1982 (Stolen or prohibited items in Aerodromes)","-","-","-"]
["Edinburgh Airport Byelaws 2015 (Search in interest of public safety)",3,0,0]
["Schedule 8(2) Air Traffic Management and Unmanned Aircraft Act 2021","-","-","-"]
[null,null,null,"-"]
["Search Warrants ",{"$f":"SUM(B53:B62)","v":735},{"$f":"SUM(C53:C62)","v":282},38.367346938775512]
["S109(1) Copyright, Designs and Patents Act 1988 (Piracy and trademark offences etc)","-","-","-"]
["S142(1) Criminal Justice Act, 1988 (Search of premises for offensive weapons)","-","-","-"]
["S23(3) Misuse Of Drugs Act 1971",683,261,38.213762811127374]
["S24(1) Forgery and Counterfeiting Act, 1981 (Search for counterfeit money)","-","-","-"]
["S27 Deer (Scotland) Act 1996","-","-","-"]
["S28B(4) Immigration Act 1971","-","-","-"]
["S292(3) Mental Health Care and Treatment Scotland Act 2003","-","-","-"]
["S42(1) Terrorism Act 2000","-","-","-"]
["S46(1) Firearms Act 1968",4,1,25]
["Other Legislation",48,20,41.666666666666671]
[null,null,null,"-"]
["Proceeds of Crime",{"$f":"B65","v":"-"},{"$f":"C65","v":"-"},"-"]
["S289 Proceeds of Crime Act 2002 (Prior approval required - cash)","-","-","-"]
["S303C Proceeds of Crime Act 2002 (Prior approval required - listed assets)","-","-","-"]
[null,null,null,"-"]
["Care and Welfare",{"$f":"B69","v":2157},{"$f":"C69","v":106},4.9142327306444136]
["S66 Criminal Justice (Scot) Act 2016",2157,106,4.9142327306444136]
[null,null,null,"-"]
["Protection of Life",{"$f":"B72","v":160},{"$f":"C72","v":16},10]
["S20/32 Police & Fire Reform (Scot) Act 2012 ",160,16,10]
[]
["Other",{"$f":"IF(SUM(B75)=0,\"-\",SUM(B75))","v":33},{"$f":"(SUM(C75))","v":11},33.333333333333329]
["S20/32 Police & Fire Reform (Scot) Act 2012 ",33,11,33.333333333333329]
[]
["Total Searches",{"$f":"SUM(B74,B71,B68,B52,B64,B47,B38,B35,B32,B29,B25,B22,B19,B14,B11,B7)","v":18998},{"$f":"SUM(C74,C71,C68,C52,C64,C47,C38,C35,C32,C29,C25,C22,C19,C14,C11,C7)","v":4783},25.176334350984312]
[]
["Public Order"]
["Searches Conducted","-"]
["Positive Searches","-"]
["Positive Rate (%)",{"$f":"IF(B81=\"-\",\"-\",B81/B80*100)","v":"-"}]
[]
[]
["1 - The search type ‘Other’ refers to when an officer believes it is necessary to conduct a search that is not for the"]
["protection of life and where no specific statutory power exists and considers their actions to be justified."]
["2 - Positive rates for searches under the Terrorism Act 2000 are not published for operational and security "]
["reasons. Statistical information about the operation of police powers under the Terrorism Act 2000 is available at"]
["Operation of Police Powers Under the Terrorism Act 2000"]

{"sheet":"Overall search outcomes","index":8,"n_rows":23,"n_cols":3,"rows_kept":23,"cut":false,"hidden":false,"merged":[]}
["Table 1.3"]
["Search Outcomes - Police Scotland"]
[{"$f":"'Number of Searches'!$A$3","v":"Period: April to September 2024"}]
[]
["Disposal","Number of Searches","% Of Total Searches"]
[]
["Fixed Penalty Notice",69,{"$f":"B7/'Number of Searches'!C45*100","v":0.36319612590799033}]
["SPR2",2921,{"$f":"B8/'Number of Searches'!C45*100","v":15.375302663438257}]
["No Further Action",11088,{"$f":"B9/'Number of Searches'!C45*100","v":58.364038319823145}]
["IVPD",883,{"$f":"B10/'Number of Searches'!C45*100","v":4.6478576692283395}]
["SID Log",4114,{"$f":"B11/'Number of Searches'!C45*100","v":21.654911043267713}]
["Recorded Police Warning",1984,{"$f":"IF(B12=\"-\",\"-\",B12/'Number of Searches'!C45*100)","v":10.443204547847142}]
[]
[]
["Key:     SPR2 – Standard Prosecution Reports"]
["             IVPD – Interim Vulnerable Persons Database"]
["             SID - Scottish Intelligence Database"]
["3 - Any anomilies in percentage changes are due to rounding up to the nearest decimal place."]
["4 - Some searches are recorded with more than one disposal so totals will not equal the actual number of stop and searches."]
["5 - A search can have more than one disposal from the list and provides the outcome and/or further action taken by officers."]
["6 - The NSSU do not currently validate disposals on the National Stop and Search Database against "]
["other recording systems. This information is captured for internal management purposes only."]
["7 - SPR2 is a new category of disposal introduced on the 11 May 2017 to meet reporting requirements of the Code of Practice."]

{"sheet":"Receipts","index":9,"n_rows":13,"n_cols":5,"rows_kept":13,"cut":false,"hidden":false,"merged":[]}
["Table 1.4"]
["Stop and Search Receipts - Police Scotland"]
[{"$f":"'Number of Searches'!$A$3","v":"Period: April to September 2024"}]
[]
[null,null,"Number of Searches","Receipts Issued","Issue Rate (%)"]
[]
[]
["Force",null,18998,12425,{"$f":"D8/C8*100","v":65.401621223286668}]
[]
[]
["8 - Officers may not issue a receipt if the person searched refuses to accept it or if the officer is called "]
["to an urgent incident. In all cases the record will be subject to a review to ensure compliance with the "]
["Code of Practice."]

{"sheet":"Search Different to Outcome","index":10,"n_rows":27,"n_cols":15,"rows_kept":27,"cut":false,"hidden":false,"merged":[]}
["Table 2.1"]
["Main Item Found Classification by Search Reason - Police Scotland"]
[{"$f":"'Number of Searches'!A3","v":"Period: April to September 2024"}]
[]
[null,null,null,null,null,null,null,"Main Item Found Classification"]
["Reason for Search","Total Positive Searches","Drugs","NPS","Stolen Property","Weapons","Firearms","Fireworks","Controlled Container","Controlled Article","Alcohol","Tobacco and Cigarette Papers","Money","Other","Aviation"]
[]
["Drugs",{"$f":"'Search Reason'!C7","v":3552},3337,10,21,160,1,1,5,"-",65,45,35,40,"-"]
["New Psychoactive Substances",{"$f":"'Search Reason'!C11","v":"-"},"-","-","-","-","-","-","-","-","-","-","-","-","-"]
["Stolen Property",{"$f":"'Search Reason'!C19","v":489},41,1,386,31,1,"-","-","-",58,4,4,24,"-"]
["Weapons",{"$f":"'Search Reason'!C14","v":304},63,1,5,233,2,"-","-","-",12,3,"-",6,"-"]
["Firearms",{"$f":"'Search Reason'!C25","v":10},1,"-","-",3,8,"-","-","-","-","-","-",1,"-"]
["Fireworks",{"$f":"IF('Search Reason'!C29=0,\"-\",'Search Reason'!C29)","v":6},1,"-","-",2,"-",2,"-","-",1,"-","-",1,"-"]
["Aviation",{"$f":"IF('Search Reason'!C47=0,\"-\",'Search Reason'!C47)","v":"-"},"-","-","-","-","-","-","-","-","-","-","-","-","-"]
["Wildlife",{"$f":"IF('Search Reason'!C38= \"0\",\"-\",'Search Reason'!C38)","v":1},1,"-","-","-","-","-","-","-","-","-","-","-","-"]
["Sporting Events",{"$f":"'Search Reason'!C22","v":6},1,"-","-","-","-","-","-","-",5,"-","-","-","-"]
["Public Order",{"$f":"IF('Search Reason'!C35=0,\"-\",'Search Reason'!C35)","v":"-"},"-","-","-","-","-","-","-","-","-","-","-","-","-"]
["Proceed of Crime",{"$f":"IF('Search Reason'!C64=0,\"-\",'Search Reason'!C64)","v":"-"},"-","-","-","-","-","-","-","-","-","-","-","-","-"]
["Care & Welfare",{"$f":"'Search Reason'!C68","v":106},66,"-",2,25,2,"-","-","-",3,6,"-",9,"-"]
["Warrant",{"$f":"'Search Reason'!C52","v":282},255,"-",5,13,5,"-","-","-","-","-",8,18,"-"]
["Protection of Life",{"$f":"IF('Search Reason'!C71=0,\"-\",'Search Reason'!C71)","v":16},4,1,1,5,"-","-","-","-",3,"-","-",2,"-"]
["Other",{"$f":"IF('Search Reason'!C74=0,\"-\",'Search Reason'!C74)","v":11},1,"-","-","-","-","-","-","-",9,"-","-",2,"-"]
[]
["Force",{"$f":"IF(SUM(B8:B22)=0,\"-\",SUM(B8:B22))","v":4783},3771,13,420,472,19,3,5,"-",156,58,47,103,{"$f":"IF(SUM(O8:O22)=0,\"-\",SUM(O8:O22))","v":"-"}]
[]
[]
["9 - Items found may be higher than total positive searches as multiple items may be found in one search."]

{"sheet":"Items Found - Drugs","index":11,"n_rows":49,"n_cols":7,"rows_kept":49,"cut":false,"hidden":false,"merged":[]}
["Table 2.2"]
["Drugs found by Local Authority Area - Police Scotland"]
[{"$f":"'Number of Searches'!$A$3","v":"Period: April to September 2024"}]
[]
[null,"Local Authority","Class A","Class B","Class C","NPS","Total"]
[]
[null,null,"Number of searches where drugs were found"]
["North"]
[null,"Highland",66,141,16,"-",{"$f":"SUM(C9:F9)","v":223}]
[null,"Orkney Islands",5,10,"-","-",15]
[null,"Shetland Islands",14,8,4,"-",26]
[null,"Eilean Siar",4,9,2,"-",{"$f":"IF(SUM(C12:F12) =0,\"-\",SUM(C12:F12))","v":15}]
[null,"Aberdeen City",44,82,15,"-",141]
[null,"Aberdeenshire",45,117,10,2,174]
[null,"Moray",13,26,"-","-",39]
[null,"Perth & Kinross",2,18,7,"-",27]
[null,"Dundee",14,19,18,"-",51]
[null,"Angus",4,17,4,"-",{"$f":"SUM(C18:F18)","v":25}]
[]
["East"]
[null,"Fife",13,41,17,"-",{"$f":"SUM(C21:F21)","v":71}]
[null,"East Lothian",9,19,4,"-",32]
[null,"Edinburgh City",95,106,20,"-",221]
[null,"Midlothian",1,23,"-","-",24]
[null,"Scottish Borders",1,25,1,"-",27]
[null,"West Lothian",13,25,5,2,45]
[null,"Clackmannanshire",1,11,3,"-",15]
[null,"Falkirk",11,38,8,1,58]
[null,"Stirling",5,22,15,"-",42]
[]
["West"]
[null,"Argyll & Bute",23,82,12,"-",{"$f":"SUM(C32:F32)","v":117}]
[null,"East Ayrshire",53,68,32,1,154]
[null,"East Dunbartonshire",11,30,3,"-",44]
[null,"East Renfrewshire",4,41,8,"-",53]
[null,"Glasgow City",218,587,126,4,935]
[null,"Inverclyde",45,35,22,"-",102]
[null,"North Ayrshire",40,75,23,"-",138]
[null,"North Lanarkshire",127,313,66,"-",506]
[null,"Renfrewshire",35,45,22,1,103]
[null,"South Ayrshire",28,67,10,2,107]
[null,"South Lanarkshire",72,204,44,"-",320]
[null,"West Dunbartonshire",29,59,19,"-",107]
[null,"Dumfries & Galloway",22,63,20,"-",105]
[]
["Force",null,{"$f":"SUM(C9:C44)","v":1067},{"$f":"SUM(D9:D44)","v":2426},{"$f":"SUM(E9:E44)","v":556},{"$f":"SUM(F9:F44)","v":13},{"$f":"SUM(G9:G44)","v":4062}]
[]
[]
["10 - Due to multiple items being found in one search, the totals will not reflect the overall number of searches."]

{"sheet":"Items Found - Weapons","index":12,"n_rows":49,"n_cols":8,"rows_kept":49,"cut":false,"hidden":false,"merged":[[48,0,48,6]]}
["Table 2.3"]
["Weapons found by Local Authority Area - Police Scotland"]
[{"$f":"'Number of Searches'!$A$3","v":"Period: April to September 2024"}]
[]
[null,"Local Authority","Bladed Instrument","Blunt Instrument","Pointed Article","Pointed Instrument","Other","Total"]
[]
[null,null,"Number of searches where weapons were found"]
["North"]
[null,"Highland",7,2,"-","-",1,{"$f":"SUM(C9:G9)","v":10}]
[null,"Orkney Islands",1,"-","-","-","-",{"$f":"IF(SUM(C10:G10) =0,\"-\",SUM(C10:G10))","v":1}]
[null,"Shetland Islands","-","-","-","-","-",{"$f":"IF(SUM(C11:G11) =0,\"-\",SUM(C11:G11))","v":"-"}]
[null,"Eilean Siar","-","-","-","-","-",{"$f":"IF(SUM(C12:G12)=0,\"-\",SUM(C12:G12))","v":"-"}]
[null,"Aberdeen City",6,"-",4,"-","-",10]
[null,"Aberdeenshire",4,4,1,"-",1,{"$f":"IF(SUM(C14:G14)=0,\"-\",SUM(C14:G14))","v":10}]
[null,"Moray","-",1,"-","-","-",{"$f":"IF(SUM(C15:G15)=0,\"-\",SUM(C15:G15))","v":1}]
[null,"Perth & Kinross",4,1,"-","-",1,{"$f":"IF(SUM(C16:G16)=0,\"-\",SUM(C16:G16))","v":6}]
[null,"Dundee",10,2,5,"-",2,19]
[null,"Angus",3,"-","-","-",1,4]
[]
["East"]
[null,"Fife",11,3,2,"-","-",16]
[null,"East Lothian",2,2,"-","-",1,5]
[null,"Edinburgh City",13,12,4,"-",5,34]
[null,"Midlothian",1,"-","-","-","-",1]
[null,"Scottish Borders","-","-","-","-","-",{"$f":"SUM(C25:G25)","v":0}]
[null,"West Lothian",4,1,5,"-","-",10]
[null,"Clackmannanshire",1,"-","-","-",1,{"$f":"IF(SUM(C27:G27)=0,\"-\",SUM(C27:G27))","v":2}]
[null,"Falkirk",9,2,4,"-",1,{"$f":"IF(SUM(C28:G28)=0,\"-\",SUM(C28:G28))","v":16}]
[null,"Stirling",3,2,2,"-","-",{"$f":"IF(SUM(C29:G29)=0,\"-\",SUM(C29:G29))","v":7}]
[]
["West"]
[null,"Argyll & Bute",1,"-",1,"-","-",{"$f":"SUM(C32:G32)","v":2}]
[null,"East Ayrshire",11,5,3,"-",2,21]
[null,"East Dunbartonshire",1,"-","-","-","-",{"$f":"IF(SUM(C34:G34)=0,\"-\",SUM(C34:G34))","v":1}]
[null,"East Renfrewshire",4,1,6,"-",1,{"$f":"IF(SUM(C35:G35)=0,\"-\",SUM(C35:G35))","v":12}]
[null,"Glasgow City",67,20,29,"-",7,123]
[null,"Inverclyde",9,1,5,"-",1,{"$f":"IF(SUM(C37:G37)=0,\"-\",SUM(C37:G37))","v":16}]
[null,"North Ayrshire",15,1,4,"-",1,21]
[null,"North Lanarkshire",30,13,16,"-",8,67]
[null,"Renfrewshire",7,"-",2,"-",1,10]
[null,"South Ayrshire",5,1,2,"-","-",8]
[null,"South Lanarkshire",22,19,12,"-",6,59]
[null,"West Dunbartonshire",10,7,4,"-",3,24]
[null,"Dumfries & Galloway",1,1,"-","-","-",2]
[]
["Force",null,{"$f":"SUM(C9:C44)","v":262},{"$f":"SUM(D8:D44)","v":101},{"$f":"SUM(E9:E44)","v":111},{"$f":"IF(SUM(F9:F44)=0,\"-\",SUM(F9:F44))","v":"-"},{"$f":"IF(SUM(G9:G44)=0,\"-\",SUM(G9:G44))","v":44},{"$f":"SUM(H8:H44)","v":518}]
[]
[]
["11 - Due to multiple items being found in one search, the totals will not reflect the overall number of searches."]

{"sheet":"Items Found - Other","index":13,"n_rows":49,"n_cols":8,"rows_kept":49,"cut":false,"hidden":false,"merged":[]}
["Table 2.4"]
["Other Items found by Local Authority Area - Police Scotland"]
[{"$f":"'Number of Searches'!$A$3","v":"Period: April to September 2024"}]
[]
[null,"Local Authority","Firearms","Fireworks","Stolen Property","Alcohol","Other","Total"]
[]
[null,null,"Number of searches where other items were found"]
["North"]
[null,"Highland",1,"-",10,3,4,{"$f":"SUM(C9:G9)","v":18}]
[null,"Orkney Islands","-","-","-","-","-",{"$f":"IF(SUM(C10:G10) =0,\"-\",SUM(C10:G10))","v":"-"}]
[null,"Shetland Islands","-","-",1,"-",1,{"$f":"IF(SUM(C11:G11)=0,\"-\",SUM(C11:G11))","v":2}]
[null,"Eilean Siar","-","-","-","-","-",{"$f":"IF(SUM(C12:G12)=0,\"-\",SUM(C12:G12))","v":"-"}]
[null,"Aberdeen City",1,"-",8,3,2,{"$f":"IF(SUM(C13:G13)=0,\"-\",SUM(C13:G13))","v":14}]
[null,"Aberdeenshire","-","-",2,3,3,{"$f":"IF(SUM(C14:G14)=0,\"-\",SUM(C14:G14))","v":8}]
[null,"Moray","-","-",1,"-","-",{"$f":"IF(SUM(C15:G15)=0,\"-\",SUM(C15:G15))","v":1}]
[null,"Perth & Kinross","-","-",4,"-","-",{"$f":"SUM(C16:G16)","v":4}]
[null,"Dundee","-","-",25,1,4,{"$f":"SUM(C17:G17)","v":30}]
[null,"Angus",1,"-",4,3,7,{"$f":"IF(SUM(C18:G18)=0,\"-\",SUM(C18:G18))","v":15}]
[]
["East"]
[null,"Fife",1,"-",3,"-",4,{"$f":"SUM(C21:G21)","v":8}]
[null,"East Lothian","-",1,1,2,3,{"$f":"SUM(C22:G22)","v":7}]
[null,"Edinburgh City","-","-",21,2,9,{"$f":"SUM(C23:G23)","v":32}]
[null,"Midlothian","-","-",5,"-",2,{"$f":"SUM(C24:G24)","v":7}]
[null,"Scottish Borders","-","-",1,"-",1,{"$f":"IF(SUM(C25:G25)=0,\"-\",SUM(C25:G25))","v":2}]
[null,"West Lothian","-","-",1,"-",1,{"$f":"IF(SUM(C26:G26)=0,\"-\",SUM(C26:G26))","v":2}]
[null,"Clackmannanshire","-","-","-","-","-",{"$f":"IF(SUM(C27:G27)=0,\"-\",SUM(C27:G27))","v":"-"}]
[null,"Falkirk","-",2,4,3,1,{"$f":"SUM(C28:G28)","v":10}]
[null,"Stirling",1,"-",3,"-",2,{"$f":"SUM(C29:G29)","v":6}]
[]
["West"]
[null,"Argyll & Bute",2,"-",3,4,2,{"$f":"SUM(C32:G32)","v":11}]
[null,"East Ayrshire",1,"-",77,16,2,96]
[null,"East Dunbartonshire","-","-",1,1,"-",2]
[null,"East Renfrewshire","-","-",4,"-",3,7]
[null,"Glasgow City",5,"-",62,25,25,117]
[null,"Inverclyde",2,"-",1,1,2,6]
[null,"North Ayrshire","-","-",12,5,2,19]
[null,"North Lanarkshire",1,"-",53,33,12,99]
[null,"Renfrewshire","-","-",15,4,4,23]
[null,"South Ayrshire","-","-",24,11,1,36]
[null,"South Lanarkshire",1,"-",50,33,4,88]
[null,"West Dunbartonshire","-","-",14,"-",2,16]
[null,"Dumfries & Galloway",2,"-",10,3,"-",15]
[]
["Force",null,{"$f":"SUM(C9:C44)","v":19},{"$f":"IF(SUM(D9:D44)=0,\"-\",SUM(D9:D44))","v":3},{"$f":"SUM(E9:E44)","v":420},{"$f":"SUM(F9:F44)","v":156},{"$f":"SUM(G9:G44)","v":103},{"$f":"SUM(H9:H44)","v":701}]
[]
[]
["12 - Due to multiple items being found in one search, the totals will not reflect the overall number of searches."]

{"sheet":"Searches by Ethnicity ","index":14,"n_rows":52,"n_cols":4,"rows_kept":52,"cut":false,"hidden":false,"merged":[]}
["Table 3.1"]
["Searches by Ethnicity/National Origin - Police Scotland"]
[{"$f":"'Number of Searches'!$A$3","v":"Period: April to September 2024"}]
[]
["Ethnicity/National Origin","Number of Searches","Positive Searches","Positive Rate (%)"]
[]
[null,"Number"]
["White Scottish",15736,3935,{"$f":"IFERROR(C8/B8*100,\"-\")","v":25.006354855109304}]
["White British Other",825,233,{"$f":"IFERROR(C9/B9*100,\"-\")","v":28.242424242424242}]
["White Irish",50,7,14.000000000000002]
["White Gypsy/Traveller",22,8,36.363636363636367]
["White Polish",193,62,32.124352331606218]
["White Other",314,102,32.484076433121018]
["Any Mixed Ethnic Group",205,53,25.853658536585368]
["Pakistani",284,73,25.704225352112676]
["Indian",46,12,26.086956521739129]
["Bangladeshi",6,1,16.666666666666664]
["Chinese",41,6,14.634146341463413]
["Asian Other",191,59,30.890052356020941]
["African, African Scottish, African British",276,64,23.188405797101449]
["African Other",119,21,17.647058823529413]
["Caribbean, Caribbean Scottish or Caribbean British",26,5,19.230769230769234]
["Black, Black Scottish or Black British",190,37,19.473684210526315]
["Black Other","-","-","-"]
["Arab, Arab Scottish, Arab British",99,23,23.232323232323232]
["Other Ethnic Group",157,32,20.382165605095544]
["Not Provided/Unknown",218,50,22.935779816513762]
[]
[null,"Percentage"]
["White Scottish",{"$f":"IFERROR(B8/'Number of Searches'!$C$45*100,\"-\")","v":82.829771554900518},{"$f":"IFERROR(C8/'Number of Searches'!$D$45*100,\"-\")","v":82.270541501149907}]
["White British Other",{"$f":"IFERROR(B9/'Number of Searches'!$C$45*100,\"-\")","v":4.3425623749868407},{"$f":"IFERROR(C9/'Number of Searches'!$D$45*100,\"-\")","v":4.8714196111227261}]
["White Irish",{"$f":"IFERROR(B10/'Number of Searches'!$C$45*100,\"-\")","v":0.26318559848405099},{"$f":"IFERROR(C10/'Number of Searches'!$D$45*100,\"-\")","v":0.14635166213673428}]
["White Gypsy/Traveller",{"$f":"IFERROR(B11/'Number of Searches'!$C$45*100,\"-\")","v":0.11580166333298242},{"$f":"IFERROR(C11/'Number of Searches'!$D$45*100,\"-\")","v":0.167259042441982}]
["White Polish",{"$f":"IFERROR(B12/'Number of Searches'!$C$45*100,\"-\")","v":1.0158964101484367},{"$f":"IFERROR(C12/'Number of Searches'!$D$45*100,\"-\")","v":1.2962575789253605}]
["White Other",{"$f":"IFERROR(B13/'Number of Searches'!$C$45*100,\"-\")","v":1.65280555847984},{"$f":"IFERROR(C13/'Number of Searches'!$D$45*100,\"-\")","v":2.1325527911352711}]
["Any Mixed Ethnic Group",{"$f":"IFERROR(B14/'Number of Searches'!$C$45*100,\"-\")","v":1.0790609537846088},{"$f":"IFERROR(C14/'Number of Searches'!$D$45*100,\"-\")","v":1.108091156178131}]
["Pakistani",{"$f":"IFERROR(B15/'Number of Searches'!$C$45*100,\"-\")","v":1.4948941993894094},{"$f":"IFERROR(C15/'Number of Searches'!$D$45*100,\"-\")","v":1.5262387622830857}]
["Indian",{"$f":"IFERROR(B16/'Number of Searches'!$C$45*100,\"-\")","v":0.24213075060532688},{"$f":"IFERROR(C16/'Number of Searches'!$D$45*100,\"-\")","v":0.25088856366297307}]
["Bangladeshi",{"$f":"IFERROR(B17/'Number of Searches'!$C$45*100,\"-\")","v":3.1582271818086115E-2},{"$f":"IFERROR(C17/'Number of Searches'!$D$45*100,\"-\")","v":2.090738030524775E-2}]
["Chinese",{"$f":"IFERROR(B18/'Number of Searches'!$C$45*100,\"-\")","v":0.21581219075692179},{"$f":"IFERROR(C18/'Number of Searches'!$D$45*100,\"-\")","v":0.12544428183148654}]
["Asian Other",{"$f":"IFERROR(B19/'Number of Searches'!$C$45*100,\"-\")","v":1.0053689862090747},{"$f":"IFERROR(C19/'Number of Searches'!$D$45*100,\"-\")","v":1.2335354380096175}]
["African, African Scottish, African British",{"$f":"IFERROR(B20/'Number of Searches'!$C$45*100,\"-\")","v":1.4527845036319613},{"$f":"IFERROR(C20/'Number of Searches'!$D$45*100,\"-\")","v":1.338072339535856}]
["African Other",{"$f":"IFERROR(B21/'Number of Searches'!$C$45*100,\"-\")","v":0.62638172439204132},{"$f":"IFERROR(C21/'Number of Searches'!$D$45*100,\"-\")","v":0.43905498641020285}]
["Caribbean, Caribbean Scottish or Caribbean British",{"$f":"IFERROR(B22/'Number of Searches'!$C$45*100,\"-\")","v":0.1368565112117065},{"$f":"IFERROR(C22/'Number of Searches'!$D$45*100,\"-\")","v":0.10453690152623876}]
["Black, Black Scottish or Black British",{"$f":"IFERROR(B23/'Number of Searches'!$C$45*100,\"-\")","v":1.0001052742393937},{"$f":"IFERROR(C23/'Number of Searches'!$D$45*100,\"-\")","v":0.77357307129416686}]
["Black Other",{"$f":"IFERROR(B24/'Number of Searches'!$C$45*100,\"-\")","v":"-"},{"$f":"IFERROR(C24/'Number of Searches'!$D$45*100,\"-\")","v":"-"}]
["Arab, Arab Scottish, Arab British",{"$f":"IFERROR(B25/'Number of Searches'!$C$45*100,\"-\")","v":0.52110748499842086},{"$f":"IFERROR(C25/'Number of Searches'!$D$45*100,\"-\")","v":0.48086974702069835}]
["Other Ethnic Group",{"$f":"IFERROR(B26/'Number of Searches'!$C$45*100,\"-\")","v":0.82640277923992},{"$f":"IFERROR(C26/'Number of Searches'!$D$45*100,\"-\")","v":0.66903616976792801}]
["Not Provided/Unknown",{"$f":"IFERROR(B27/'Number of Searches'!$C$45*100,\"-\")","v":1.1474892093904623},{"$f":"IFERROR(C27/'Number of Searches'!$D$45*100,\"-\")","v":1.0453690152623878}]
[]
[]
["13 - Any anomilies in percentage changes are due to rounding up to the nearest decimal place."]

{"sheet":"Searches By Age and Gender","index":15,"n_rows":52,"n_cols":4,"rows_kept":52,"cut":false,"hidden":false,"merged":[]}
["Table 3.2"]
["Searches by Age and Gender - Police Scotland"]
[{"$f":"'Number of Searches'!$A$3","v":"Period: April to September 2024"}]
[]
["Demographic","Number of Searches","Positive Searches","Positive Rate (%)"]
[]
["Gender","Number"]
["Male",15921,4104,{"$f":"IFERROR(C8/B8*100,\"-\")","v":25.777275296777841}]
["Female",3077,679,{"$f":"IFERROR(C9/B9*100,\"-\")","v":22.066948326291843}]
["Not Provided","-","-","-"]
[]
["Age Group"]
["1 - 11 Years",30,1,{"$f":"IFERROR(C13/B13*100,\"-\")","v":3.3333333333333335}]
["12 - 15 Years",1578,238,{"$f":"IFERROR(C14/B14*100,\"-\")","v":15.082382762991129}]
["16 - 17 Years",1445,327,22.629757785467127]
["18 - 19 Years",1227,325,26.487367563162184]
["20 - 24 Years",2507,783,31.232548863183084]
["25 - 29 Years",2087,645,30.905606133205559]
["30 - 39 Years",4384,1194,27.235401459854014]
["40 - 49 Years",3685,902,24.477611940298509]
["50 - 59 Years",1492,301,20.174262734584449]
["60 - 69 Years",322,58,18.012422360248447]
["70 Years and Over",67,5,7.4626865671641784]
["Age Unknown",174,4,2.2988505747126435]
[]
[]
["Gender","Percentage"]
["Male",{"$f":"B8/'Number of Searches'!$C$45*100","v":83.8035582692915},{"$f":"IFERROR(C8/'Number of Searches'!$D$45*100,\"-\")","v":85.803888772736784}]
["Female",{"$f":"B9/'Number of Searches'!$C$45*100","v":16.196441730708496},{"$f":"IFERROR(C9/'Number of Searches'!$D$45*100,\"-\")","v":14.196111227263225}]
["Not Provided",{"$f":"IFERROR(B10/'Number of Searches'!$C$45*100,\"-\")","v":"-"},{"$f":"IFERROR(C10/'Number of Searches'!$D$45*100,\"-\")","v":"-"}]
[]
["Age Group"]
["1 - 11 Years",{"$f":"IFERROR(B13/'Number of Searches'!$C$45*100,\"-\")","v":0.15791135909043058},{"$f":"IFERROR(C13/'Number of Searches'!$D$45*100,\"-\")","v":2.090738030524775E-2}]
["12 - 15 Years",{"$f":"IFERROR(B14/'Number of Searches'!$C$45*100,\"-\")","v":8.3061374881566472},{"$f":"IFERROR(C14/'Number of Searches'!$D$45*100,\"-\")","v":4.9759565126489651}]
["16 - 17 Years",{"$f":"IFERROR(B15/'Number of Searches'!$C$45*100,\"-\")","v":7.6060637961890718},{"$f":"IFERROR(C15/'Number of Searches'!$D$45*100,\"-\")","v":6.8367133598160157}]
["18 - 19 Years",{"$f":"IFERROR(B16/'Number of Searches'!$C$45*100,\"-\")","v":6.4585745867986102},{"$f":"IFERROR(C16/'Number of Searches'!$D$45*100,\"-\")","v":6.7948985992055189}]
["20 - 24 Years",{"$f":"IFERROR(B17/'Number of Searches'!$C$45*100,\"-\")","v":13.196125907990314},{"$f":"IFERROR(C17/'Number of Searches'!$D$45*100,\"-\")","v":16.370478779008991}]
["25 - 29 Years",{"$f":"IFERROR(B18/'Number of Searches'!$C$45*100,\"-\")","v":10.985366880724287},{"$f":"IFERROR(C18/'Number of Searches'!$D$45*100,\"-\")","v":13.4852602968848}]
["30 - 39 Years",{"$f":"IFERROR(B19/'Number of Searches'!$C$45*100,\"-\")","v":23.076113275081585},{"$f":"IFERROR(C19/'Number of Searches'!$D$45*100,\"-\")","v":24.963412084465816}]
["40 - 49 Years",{"$f":"IFERROR(B20/'Number of Searches'!$C$45*100,\"-\")","v":19.396778608274555},{"$f":"IFERROR(C20/'Number of Searches'!$D$45*100,\"-\")","v":18.858457035333473}]
["50 - 59 Years",{"$f":"IFERROR(B21/'Number of Searches'!$C$45*100,\"-\")","v":7.8534582587640802},{"$f":"IFERROR(C21/'Number of Searches'!$D$45*100,\"-\")","v":6.2931214718795729}]
["60 - 69 Years",{"$f":"IFERROR(B22/'Number of Searches'!$C$45*100,\"-\")","v":1.6949152542372881},{"$f":"IFERROR(C22/'Number of Searches'!$D$45*100,\"-\")","v":1.2126280577043698}]
["70 Years and Over",{"$f":"IFERROR(B23/'Number of Searches'!$C$45*100,\"-\")","v":0.35266870196862826},{"$f":"IFERROR(C23/'Number of Searches'!$D$45*100,\"-\")","v":0.10453690152623876}]
["Age Unknown",{"$f":"IFERROR(B24/'Number of Searches'!$C$45*100,\"-\")","v":0.91588588272449734},{"$f":"IFERROR(C24/'Number of Searches'!$D$45*100,\"-\")","v":8.3629521220991002E-2}]
[]
[]
["14 - All 30 searches of persons in the age group ‘1-11’ have been reviewed by the NSSU and met the expected"]
["criteria.   "]
["15 - Searches recorded in the age group 'Age Unknown' refer to records where the nominal details were withheld "]
["or 'Age Unknown' boxes have been ticked.  Officers are required to make an estimate whether the persons "]
["searched was under the age of 18.  Of the 174 searches 136 were for persons estimated by reporting officers to be "]
["18 years of age or over and 38 was for persons estimated to be under the age of 18."]

{"sheet":"S60 Auths","index":16,"n_rows":17,"n_cols":5,"rows_kept":17,"cut":false,"hidden":false,"merged":[]}
["Table 4.1"]
["Use of powers under Section 60 Criminal Justice and Public Order Act 1994 - Police Scotland"]
[{"$f":"'Number of Searches'!$A$3","v":"Period: April to September 2024"}]
[]
["A total of 0 stop searches have been carried out under Section 60 Criminal Justice and Public Order Act 1994 authorisations recorded as detailed in the table below:"]
[]
["Authorisation Date","Local Authority Area","Authorising Officer Rank","Authorisation Type","Number of Searches"]
[]
[]
[]
[]
[]
[]
[]
[]
[]
["The \"pre-planned\" authorisation relates to n/a"]